fUSD/lending_fUSD_20251013
["ID","MTS","AMOUNT","RATE_DAILY","PERIOD"]
[391118914,1760361289268,-500.0,0.00041096,30]
[391118915,1760361289321,-500.0,0.00041096,30]
[391118916,1760361289381,-500.0,0.00041096,30]
[391118917,1760361289436,-500.0,0.00041096,30]
[391118918,1760361289488,-500.0,0.00041096,30]
[391118919,1760361289546,-500.0,0.00041096,30]
[391118920,1760361289602,-500.0,0.00041096,30]
[391118921,1760361289657,-500.0,0.00041096,30]
[391118922,1760361289712,-500.0,0.00041096,30]
[391118923,1760361289768,-500.0,0.00041096,30]
[391118924,1760361289822,-500.0,0.00041096,30]
[391118925,1760361289874,-500.0,0.00041096,30]
[391118926,1760361289929,-500.0,0.00041096,30]
[391118927,1760361289989,-500.0,0.00041096,30]
[391118928,1760361290047,-500.0,0.00041096,30]
[391118929,1760361290105,-500.0,0.00041096,30]
[391118930,1760361290160,-500.0,0.00041096,30]
[391118931,1760361290217,-500.0,0.00041096,30]
[391118932,1760361290272,-500.0,0.00041096,30]
[391118933,1760361290327,-500.0,0.00041096,30]
[391118934,1760361290380,-500.0,0.00041096,30]
[391118935,1760361290434,-500.0,0.00041096,30]
[391118936,1760361290487,-500.0,0.00041096,30]
[391118937,1760361290544,-500.0,0.00041096,30]
[391118938,1760361290600,-500.0,0.00041096,30]
[391118939,1760361290656,-500.0,0.00041096,30]
[391118940,1760361290712,-500.0,0.00041096,30]
[391118941,1760361290768,-500.0,0.00041096,30]
[391118942,1760361290823,-500.0,0.00041096,30]
[391118943,1760361290879,-500.0,0.00041096,30]
[391118944,1760361290949,-500.0,0.00041096,30]
[391118945,1760361291016,-500.0,0.00041096,30]
[391118946,1760361291412,-500.0,0.00041096,30]
[391118947,1760361291466,-500.0,0.00041096,30]
[391118948,1760361291521,-500.0,0.00041096,30]
[391118949,1760361291577,-500.0,0.00041096,30]
[391118950,1760361291630,-500.0,0.00041096,30]
[391118951,1760361291684,-500.0,0.00041096,30]
[391118952,1760361291742,-500.0,0.00041096,30]
[391118953,1760361291794,-500.0,0.00041096,30]
[391118954,1760361291845,-500.0,0.00041096,30]
[391118955,1760361291896,-500.0,0.00041096,30]
[391118956,1760361291951,-500.0,0.00041096,30]
[391118957,1760361292003,-500.0,0.00041096,30]
[391118958,1760361292055,-500.0,0.00041096,30]
[391118959,1760361292105,-483.0,0.00041096,30]
[391118960,1760361292153,-500.0,0.00041096,30]
[391118961,1760361292201,-500.0,0.00041096,30]
[391118962,1760361292250,-500.0,0.00041096,30]
[391118963,1760361292298,-500.0,0.00041096,30]
[391118964,1760361292345,-500.0,0.00041096,30]
[391118965,1760361292392,-500.0,0.00041096,30]
[391118966,1760361292448,-500.0,0.00041096,30]
[391118967,1760361292513,-500.0,0.00041096,30]
[391118968,1760361292575,-500.0,0.00041096,30]
[391118969,1760361292636,-500.0,0.00041096,30]
[391118970,1760361292700,-500.0,0.00041096,30]
[391118971,1760361292758,-500.0,0.00041096,30]
[391118972,1760361292819,-500.0,0.00041096,30]
[391118973,1760361292875,-500.0,0.00041096,30]
[391118974,1760361292949,-500.0,0.00041096,30]
[391118975,1760361293008,-500.0,0.00041096,30]
[391118976,1760361293069,-500.0,0.00041096,30]
[391118977,1760361293126,-500.0,0.00041096,30]
[391118978,1760361293181,-500.0,0.00041096,30]
[391118979,1760361293240,-500.0,0.00041096,30]
[391118980,1760361293296,-500.0,0.00041096,30]
[391118981,1760361293352,-500.0,0.00041096,30]
[391118982,1760361293407,-500.0,0.00041096,30]
[391118983,1760361293466,-500.0,0.00041096,30]
[391118984,1760361293523,-500.0,0.00041096,30]
[391118985,1760361293581,-500.0,0.00041096,30]
[391118986,1760361293637,-10000.0,0.00041096,120]
[391118987,1760361293696,-10000.0,0.00041096,120]
[391118988,1760361293759,-1308.0,0.00041096,120]
[391118989,1760361293818,-4000.0,0.00041096,30]
[391118990,1760361293874,-1327.7,0.00041096,120]
[391118991,1760361293930,-8767.7461568,0.00041096,37]
[391118992,1760361293987,-173.0,0.000411,120]
[391118993,1760361294044,-5566.98,0.0004118,90]
[391118994,1760361294101,-150.0,0.00041194,120]
[391118995,1760361294162,-4112.33,0.00041233,120]
[391118996,1760361294222,-3323.36634,0.00041288,30]
[391118997,1760361294284,-150.0,0.00041349,120]
[391118998,1760361294345,-500.0,0.00041369,30]
[391118999,1760361294406,-150.0,0.00041429,120]
[391119000,1760361294468,-150.0,0.00041476,120]
[391119001,1760361294532,-3323.36634,0.00041488,30]
[391119002,1760361294605,-1000.0,0.000415,120]
[391119003,1760361294676,-2500.0,0.000415,120]
[391119004,1760361294752,-2500.0,0.000415,120]
[391119005,1760361294817,-2500.0,0.000415,120]
[391119006,1760361294881,-150.0,0.00041528,120]
[391119007,1760361294951,-294.602508,0.0004153,120]
[391119008,1760361295013,-500.0,0.00041643,30]
[391119009,1760361295078,-3323.36634,0.00041688,30]
[391119010,1760361295137,-20000.0,0.000417,120]
[391119011,1760361295200,-150.0,0.00041768,120]
[391119012,1760361295261,-3558.17,0.0004178,120]
[391119013,1760361295322,-2000.0,0.00041799,30]
[391119014,1760361295380,-152.0,0.000418,120]
[391119015,1760361295435,-173.0,0.000418,120]
[391119016,1760361295490,-20000.0,0.000418,120]
[391119017,1760361295554,-3323.36634,0.00041888,30]
[391119018,1760361295618,-500.0,0.00041917,30]
[391119019,1760361295679,-1168.64135346,0.00042,30]
[391119020,1760361295743,-97193.82494442,0.00042,30]
[391119021,1760361295804,-200000.0,0.00042,30]
[391119022,1760361295865,-1533.06742387,0.00042,30]
[391119023,1760361295925,-579.13154539,0.00042,30]
[391119024,1760361295986,-3872.96481005,0.00042,80]
[391119025,1760361296048,-1504.25541892,0.00042,120]
[391119026,1760361296108,-658.03790552,0.00042,120]
[391119027,1760361296168,-1000.0,0.00042,120]
[391119028,1760361296233,-400.0,0.00042,120]
[391119029,1760361296294,-500.0,0.00042,120]
[391119030,1760361296351,-10400.0,0.00042,120]
[391119031,1760361296408,-50000.0,0.00042,120]
[391119032,1760361296462,-2000.0,0.00042,120]
[391119033,1760361296517,-1000.0,0.00042,120]
[391119034,1760361296574,-36329.3,0.00042,30]
[391119035,1760361296632,-53864.62543639,0.00042,120]
[391119036,1760361296690,-3400.0,0.00042,120]
[391119037,1760361296745,-5000.0,0.00042,120]
[391119038,1760361296796,-2500.0,0.00042,120]
[391119039,1760361296850,-2500.0,0.00042,120]
[391119040,1760361296900,-2500.0,0.00042,120]
[391119041,1760361297232,-150.0,0.00042,53]
[391119042,1760361297305,-12027.6,0.00042059,117]
[391119043,1760361297360,-150.0,0.00042064,120]
[391119044,1760361297415,-150.0,0.00042119,120]
[391119045,1760361297468,-150.0,0.00042185,120]
[391119046,1760361297523,-500.0,0.00042191,30]
[391119047,1760361297578,-150.0,0.00042221,120]
[391119048,1760361297646,-150.0,0.00042455,120]
[391119049,1760361297701,-500.0,0.00042465,30]
[391119050,1760361297758,-3558.17,0.00042465,120]
[391119051,1760361297816,-150.0,0.00042474,120]
[391119052,1760361297871,-1672.37205148,0.000425,60]
[391119053,1760361297928,-5000.0,0.000425,120]
[391119054,1760361297986,-173.0,0.000425,120]
[391119055,1760361298045,-1000.0,0.000425,120]
[391119056,1760361298106,-2500.0,0.000425,120]
[391119057,1760361298164,-2500.0,0.000425,120]
[391119058,1760361298220,-2500.0,0.000425,120]
[391119059,1760361298277,-2500.0,0.000425,120]
[391119060,1760361298334,-150.0,0.00042532,120]
[391119061,1760361298389,-150.0,0.00042572,120]
[391119062,1760361298445,-28818.59047591,0.000427,90]
[391119063,1760361298506,-152.0,0.000427,120]
[391119064,1760361298564,-500.0,0.00042739,30]
[391119065,1760361298620,-110317.93,0.000428,120]
[391119066,1760361298677,-2690.40195416,0.000428,120]
[391119067,1760361298733,-27212.888,0.00042851,120]
[391119068,1760361298788,-27212.888,0.00042851,120]
[391119069,1760361298844,-27212.888,0.00042851,120]
[391119070,1760361298898,-27212.889,0.00042851,120]
[391119071,1760361298960,-27212.888,0.00042851,120]
[391119072,1760361299017,-1000.0,0.00042999,120]
[391119073,1760361299074,-20000.0,0.00043,30]
[391119074,1760361299130,-721803.80571591,0.00043,30]
[391119075,1760361299185,-20000.0,0.00043,30]
[391119076,1760361299243,-5811.0,0.00043,120]
[391119077,1760361299297,-500.0,0.00043,120]
[391119078,1760361299355,-75000.0,0.00043,120]
[391119079,1760361299412,-3930.0,0.00043,120]
[391119080,1760361299469,-1000.0,0.00043,120]
[391119081,1760361299526,-10000.0,0.00043,120]
[391119082,1760361299593,-21897.0,0.00043,120]
[391119083,1760361299646,-14330.0,0.00043,30]
[391119084,1760361299699,-20000.0,0.00043,120]
[391119085,1760361299755,-10400.01,0.00043,120]
[391119086,1760361299808,-20785.0,0.00043,120]
[391119087,1760361299860,-2500.0,0.00043,120]
[391119088,1760361299911,-2500.0,0.00043,120]
[391119089,1760361299965,-2500.0,0.00043,120]
[391119090,1760361300021,-500.0,0.00043013,30]
[391119091,1760361300080,-1314.9803188,0.00043013,37]
[391119092,1760361300139,-203.01,0.00043014,120]
[391119093,1760361300200,-150.0,0.00043022,120]
[391119094,1760361300257,-1288.89207519,0.000431,120]
[391119095,1760361300315,-5677.09,0.000431,120]
[391119096,1760361300375,-3558.17,0.0004315,120]
[391119097,1760361300434,-173.0,0.000432,120]
[391119098,1760361300491,-4112.33,0.00043233,120]
[391119099,1760361300550,-5988.65601425,0.0004328,120]
[391119100,1760361300612,-598.0684738,0.00043287,30]
[391119101,1760361300673,-1000000.0,0.000434,120]
[391119102,1760361300731,-500000.0,0.000434,120]
[391119103,1760361300787,-427611.7221,0.00043444,30]
[391119104,1760361300844,-26091.23236391,0.000435,120]
[391119105,1760361300900,-46654.99600478,0.000435,120]
[391119106,1760361300955,-2500.0,0.000435,120]
[391119107,1760361301012,-2500.0,0.000435,120]
[391119108,1760361301070,-1322.13397575,0.000436,120]
[391119109,1760361301128,-152.0,0.000437,120]
[391119110,1760361301188,-10902.92309228,0.00043799,120]
[391119111,1760361301250,-31649.0,0.000438,120]
[391119112,1760361301308,-494.24190237,0.000438,30]
[391119113,1760361301364,-787.67868572,0.000438,120]
[391119114,1760361301420,-20000.0,0.000438,120]
[391119115,1760361301472,-500.0,0.000438,120]
[391119116,1760361301527,-500.0,0.000438,120]
[391119117,1760361301584,-500.0,0.000438,120]
[391119118,1760361301642,-500.0,0.000438,120]
[391119119,1760361301702,-500.0,0.000438,120]
[391119120,1760361301762,-500.0,0.000438,120]
[391119121,1760361301823,-7170.166813,0.000438,120]
[391119122,1760361301880,-34705.95598653,0.000438,120]
[391119123,1760361301939,-667623.15373144,0.00043826,30]
[391119124,1760361307810,-1191.16998287,0.00037,120]
[391119125,1760361307876,-300.0,0.00038936,92]
[391119126,1760361307943,-4332216.84626856,0.00043826,30]
[391119127,1760361308003,-666291.98374857,0.00043826,30]
[391119128,1760361313661,-285.873,0.00042153,30]
[391119129,1760361313726,-3541147.74701033,0.00043826,30]
[391119130,1760361313792,-1421.810808,0.00043826,30]
[391119131,1760361313859,-1226077.576469,0.00043826,30]
[391119132,1760361313922,-231066.99271267,0.00043826,30]
[391119133,1760361318428,-50000.0,0.00039999,40]
[391119134,1760361318491,-300.0,0.00041634,107]
[391119135,1760361318558,-3558.17,0.00043835,120]
[391119136,1760361318619,-600.0,0.00043836,30]
[391119137,1760361318678,-600.0,0.00043836,30]
[391119138,1760361318739,-600.0,0.00043836,30]
[391119139,1760361318801,-600.0,0.00043836,30]
[391119140,1760361318865,-600.0,0.00043836,30]
[391119141,1760361318927,-195.22742647,0.00043836,30]
[391119142,1760361318993,-151.0,0.00043836,30]
[391119143,1760361319056,-250.0,0.00043836,30]
[391119144,1760361319117,-220.0,0.00043836,30]
[391119145,1760361319180,-300.0,0.00043836,30]
[391119146,1760361319242,-151.0,0.00043836,30]
[391119147,1760361319302,-300.0,0.00043836,30]
[391119148,1760361319361,-151.0,0.00043836,30]
[391119149,1760361319419,-6888.0,0.00043836,30]
[391119150,1760361319477,-250.0,0.00043836,30]
[391119151,1760361319542,-220.0,0.00043836,30]
[391119152,1760361319610,-160.0,0.00043836,30]
[391119153,1760361319675,-2000.0,0.00043836,30]
[391119154,1760361319737,-151.0,0.00043836,30]
[391119155,1760361319796,-300.0,0.00043836,30]
[391119156,1760361319857,-156.587,0.00043836,30]
[391119157,1760361319932,-151.0,0.00043836,30]
[391119158,1760361319997,-7142.856,0.00043836,30]
[391119159,1760361320058,-250.0,0.00043836,30]
[391119160,1760361320119,-160.0,0.00043836,30]
[391119161,1760361320182,-2000.0,0.00043836,30]
[391119162,1760361320242,-220.0,0.00043836,30]
[391119163,1760361320303,-151.0,0.00043836,30]
[391119164,1760361320363,-151.0,0.00043836,30]
[391119165,1760361320422,-311.1,0.00043836,30]
[391119166,1760361320481,-300.0,0.00043836,30]
[391119167,1760361320540,-7407.141672,0.00043836,30]
[391119168,1760361320604,-162.380719,0.00043836,30]
[391119169,1760361320667,-2000.0,0.00043836,30]
[391119170,1760361320728,-160.0,0.00043836,30]
[391119171,1760361320791,-250.0,0.00043836,30]
[391119172,1760361320854,-220.0,0.00043836,30]
[391119173,1760361320918,-151.0,0.00043836,30]
[391119174,1760361320982,-7681.20591386,0.00043836,30]
[391119175,1760361321047,-168.3888056,0.00043836,30]
[391119176,1760361321112,-151.0,0.00043836,30]
[391119177,1760361321178,-300.0,0.00043836,30]
[391119178,1760361321245,-322.6107,0.00043836,30]
[391119179,1760361321311,-2000.0,0.00043836,30]
[391119180,1760361321375,-160.0,0.00043836,30]
[391119181,1760361321437,-250.0,0.00043836,30]
[391119182,1760361321498,-151.0,0.00043836,30]
[391119183,1760361321570,-7965.41053268,0.00043836,30]
[391119184,1760361321634,-334.5472959,0.00043836,30]
[391119185,1760361321697,-300.0,0.00043836,30]
[391119186,1760361322089,-151.0,0.00043836,30]
[391119187,1760361322153,-174.61919141,0.00043836,30]
[391119188,1760361322215,-2000.0,0.00043836,30]
[391119189,1760361322275,-250.0,0.00043836,30]
[391119190,1760361322334,-160.0,0.00043836,30]
[391119191,1760361322392,-151.0,0.00043836,30]
[391119192,1760361322451,-8260.13072239,0.00043836,30]
[391119193,1760361322510,-346.92554585,0.00043836,30]
[391119194,1760361322571,-151.0,0.00043836,30]
[391119195,1760361322634,-300.0,0.00043836,30]
[391119196,1760361322697,-151.0,0.00043836,30]
[391119197,1760361322762,-160.0,0.00043836,30]
[391119198,1760361322824,-2000.0,0.00043836,30]
[391119199,1760361322883,-250.0,0.00043836,30]
[391119200,1760361322940,-181.08010149,0.00043836,30]
[391119201,1760361323002,-395.93985442,0.00043836,30]
[391119202,1760361323066,-151.0,0.00043836,30]
[391119203,1760361323129,-300.0,0.00043836,30]
[391119204,1760361323193,-8565.75555911,0.00043836,30]
[391119205,1760361323254,-151.0,0.00043836,30]
[391119206,1760361323316,-2000.0,0.00043836,30]
[391119207,1760361323381,-250.0,0.00043836,30]
[391119208,1760361323445,-160.0,0.00043836,30]
[391119209,1760361323506,-187.78006525,0.00043836,30]
[391119210,1760361323566,-300.0,0.00043836,30]
[391119211,1760361323631,-8882.6885148,0.00043836,30]
[391119212,1760361323694,-151.0,0.00043836,30]
[391119213,1760361323759,-2000.0,0.00043836,30]
[391119214,1760361323821,-160.0,0.00043836,30]
[391119215,1760361323882,-194.72792766,0.00043836,30]
[391119216,1760361323947,-2000.0,0.00043836,30]
[391119217,1760361324012,-6245.90167117,0.00043836,30]
[391119218,1760361324347,-2000.0,0.00043836,30]
[391119219,1760361324415,-2000.0,0.00043836,30]
[391119220,1760361324482,-2000.0,0.00043836,30]
[391119221,1760361324549,-2000.0,0.00043836,30]
[391119222,1760361324615,-2000.0,0.00043836,30]
[391119223,1760361324677,-500.0,0.00043836,30]
[391119224,1760361324739,-151.0,0.00043836,30]
[391119225,1760361324803,-500.0,0.00043836,30]
[391119226,1760361324863,-500.0,0.00043836,30]
[391119227,1760361324926,-2000.0,0.00043836,30]
[391119228,1760361324988,-500.0,0.00043836,30]
[391119229,1760361325051,-151.0,0.00043836,30]
[391119230,1760361325115,-500.0,0.00043836,30]
[391119231,1760361325179,-500.0,0.00043836,30]
[391119232,1760361325240,-500.0,0.00043836,30]
[391119233,1760361325303,-2000.0,0.00043836,30]
[391119234,1760361325366,-500.0,0.00043836,30]
[391119235,1760361325426,-500.0,0.00043836,30]
[391119236,1760361325486,-500.0,0.00043836,30]
[391119237,1760361325550,-500.0,0.00043836,30]
[391119238,1760361325612,-500.0,0.00043836,30]
[391119239,1760361325679,-2000.0,0.00043836,30]
[391119240,1760361325745,-500.0,0.00043836,30]
[391119241,1760361325807,-500.0,0.00043836,30]
[391119242,1760361325867,-500.0,0.00043836,30]
[391119243,1760361325926,-500.0,0.00043836,30]
[391119244,1760361325987,-520.0,0.00043836,30]
[391119245,1760361326050,-500.0,0.00043836,30]
[391119246,1760361326112,-2000.0,0.00043836,30]
[391119247,1760361326175,-500.0,0.00043836,30]
[391119248,1760361326238,-151.0,0.00043836,30]
[391119249,1760361326300,-500.0,0.00043836,30]
[391119250,1760361326363,-500.0,0.00043836,30]
[391119251,1760361326428,-539.24,0.00043836,30]
[391119252,1760361326489,-518.5,0.00043836,30]
[391119253,1760361326555,-500.0,0.00043836,30]
[391119254,1760361326619,-2000.0,0.00043836,30]
[391119255,1760361326682,-500.0,0.00043836,30]
[391119256,1760361326746,-151.0,0.00043836,30]
[391119257,1760361326812,-500.0,0.00043836,30]
[391119258,1760361326876,-537.6845,0.00043836,30]
[391119259,1760361326941,-500.0,0.00043836,30]
[391119260,1760361327008,-559.19188,0.00043836,30]
[391119261,1760361327074,-500.0,0.00043836,30]
[391119262,1760361327139,-500.0,0.00043836,30]
[391119263,1760361327207,-151.0,0.00043836,30]
[391119264,1760361327275,-628.24715912,0.00043836,30]
[391119265,1760361327343,-2000.0,0.00043836,30]
[391119266,1760361327403,-557.5788265,0.00043836,30]
[391119267,1760361327463,-500.0,0.00043836,30]
[391119268,1760361327530,-500.0,0.00043836,30]
[391119269,1760361327598,-579.88197956,0.00043836,30]
[391119270,1760361327665,-500.0,0.00043836,30]
[391119271,1760361327730,-151.0,0.00043836,30]
[391119272,1760361327794,-578.20924308,0.00043836,30]
[391119273,1760361327860,-500.0,0.00043836,30]
[391119274,1760361327924,-601.3376128,0.00043836,30]
[391119275,1760361327989,-2000.0,0.00043836,30]
[391119276,1760361328056,-500.0,0.00043836,30]
[391119277,1760361328124,-599.60298507,0.00043836,30]
[391119278,1760361328189,-623.58710448,0.00043836,30]
[391119279,1760361328251,-2000.0,0.00043836,30]
[391119280,1760361328539,-621.78829552,0.00043836,30]
[391119281,1760361328606,-646.65982734,0.00043836,30]
[391119282,1760361328672,-2000.0,0.00043836,30]
[391119283,1760361328742,-644.79446245,0.00043836,30]
[391119284,1760361328809,-670.58624095,0.00043836,30]
[391119285,1760361328881,-500.0,0.00043836,30]
[391119286,1760361328945,-646.65982734,0.00043836,30]
[391119287,1760361329009,-151.0,0.00043836,30]
[391119288,1760361329070,-151.0,0.00043836,30]
[391119289,1760361329132,-151.0,0.00043836,30]
[391119290,1760361329907,4788111.27483673,0.00043826,30]
[391119293,1760361490440,5613.3,0.00027999,120]
[391119294,1760361490699,5613.3,0.00027999,120]
[391119295,1760361490947,5613.3,0.00027999,120]
[391119296,1760361491211,5613.3,0.00027999,120]
[391119297,1760361491688,5613.3,0.00027999,120]
[391119298,1760361496658,4063.45,0.00027666,120]
[391119300,1760361496929,4063.45,0.00027989,120]
[391119301,1760361497167,4063.45,0.00027999,120]
[391119302,1760361497404,4063.45,0.00027999,120]
[391119303,1760361497676,4063.45,0.00027999,120]
[391119304,1760361497935,4063.45,0.00027999,120]
[391119305,1760361541387,-177.41677475,0.00012535,2]
[391119306,1760361544486,-646.65982734,0.00012535,2]
[391119307,1760361548124,-244.11976489,0.00012535,2]
[391119308,1760361549487,-426.25524773,0.00012535,2]
[391119309,1760361552016,-207.81237937,0.00012535,2]
[391119310,1760361556271,-177.70063656,0.00012535,2]
[391119311,1760361558729,-188.3549872,0.00012535,2]
[391119312,1760361559777,-160.0,0.00012535,2]
[391119313,1760361563727,-372.91733996,0.00012535,2]
[391119314,1760361568169,-157.77464258,0.00012535,2]
[391119315,1760361569324,5388.11,0.00027721,120]
[391119316,1760361569533,5388.11,0.00027999,120]
[391119317,1760361569789,5388.11,0.00027999,120]
[391119318,1760361570035,5388.11,0.00027999,120]
[391119319,1760361570164,-288.37941474,0.00012535,2]
[391119320,1760361570710,5388.11,0.00027999,120]
[391119322,1760361586402,-302.0,0.00012535,2]
[391119323,1760361589334,-302.0,0.00012535,2]
[391119324,1760361591234,-302.0,0.00012535,2]
[391119325,1760361594618,-300.0,0.00012535,2]
[391119326,1760361596850,-303.20767531,0.00012535,2]
[391119327,1760361598341,-630.13829332,0.00012535,2]
[391119328,1760361601586,-307.4753787,0.00012535,2]
[391119329,1760361601650,155.437,0.00012284,2]
[391119330,1760361601689,1917.475,0.00012284,2]
[391119331,1760361601734,1200.0,0.00012534,2]
[391119332,1760361607913,-194.46217041,0.00012535,2]
[391119333,1760361612364,-166.63261706,0.00012535,2]
[391119334,1760361614606,-255.95304741,0.00012535,2]
[391119337,1760361630759,500.0,0.00028767,120]
[391119338,1760361632070,-311.87619932,0.00012535,2]
[391119339,1760361633603,593.64482294,0.00012534,2]
[391119340,1760361633648,173.63840245,0.00012534,2]
[391119341,1760361633686,500.0,0.00012534,2]
[391119342,1760361633749,195.79610689,0.00012534,2]
[391119343,1760361633812,454.31815901,0.00012534,2]
[391119344,1760361633854,363.65612758,0.00012534,2]
[391119345,1760361633892,500.0,0.00012534,2]
[391119346,1760361633944,260.95264692,0.00012534,2]
[391119349,1760361636394,-175.02466594,0.00012535,2]
[391119350,1760361637844,-456.882785,0.00012535,2]
[391119351,1760361639265,-253.47309563,0.00012535,2]
[391119352,1760361641214,-255.88023511,0.00012535,2]
[391119354,1760361644998,-300.0,0.00012535,2]
[391119355,1760361648692,500.0,0.00012534,2]
[391119356,1760361648753,645.538637,0.00012534,2]
[391119357,1760361649616,-302.0,0.00012535,2]
[391119358,1760361652710,-176.1463035,0.00012535,2]
[391119359,1760361655624,-232.59992373,0.00012535,2]
[391119360,1760361657221,-222.71627183,0.00012535,2]
[391119361,1760361659400,561.14,0.00028767,120]
[391119362,1760361660612,-158.48117097,0.00012535,2]
[391119364,1760361662220,300.0,0.00012534,2]
[391119365,1760361662923,150.0,0.00012534,2]
[391119366,1760361664314,-300.0,0.00012535,2]
[391119367,1760361666540,500.0,0.00012534,2]
[391119368,1760361668573,-215.4245165,0.00012535,2]
[391119369,1760361670465,-366.84385497,0.00012535,2]
[391119372,1760361691372,-317.29,0.00012535,2]
[391119373,1760361694851,500.0,0.00012534,2]
[391119374,1760361696158,-250.0,0.00012535,2]
[391119375,1760361701394,-330.48340147,0.00012535,2]
[391119376,1760361704276,-259.11,0.00012535,2]
[391119377,1760361706656,218.62801148,0.00012435,2]
[391119378,1760361710353,12890.0448002,0.00012435,2]
[391119379,1760361710383,-500.0,0.00012535,2]
[391119380,1760361711911,-161.36508954,0.00012535,2]
[391119381,1760361712041,-100000.0,0.00012535,2]
[391119382,1760361717716,-302.0,0.00012535,2]
[391119383,1760361719150,-195.06813115,0.00012535,2]
[391119384,1760361721457,-376.39664348,0.00012535,2]
[391119385,1760361724843,-376.95153946,0.00012535,2]
[391119386,1760361726237,-231.5249924,0.00012535,2]
[391119387,1760361726816,500.0,0.00012534,2]
[391119388,1760361728782,-194.60254205,0.00012535,2]
[391119389,1760361729200,-20000.0,0.00012535,2]
[391119390,1760361730488,-20000.0,0.00012535,2]
[391119391,1760361731973,-20000.0,0.00012535,2]
[391119392,1760361732096,-167.60418897,0.00012535,2]
[391119393,1760361733115,-20000.0,0.00012535,2]
[391119394,1760361734010,-457.85196249,0.00012535,2]
[391119395,1760361734119,-20000.0,0.00012535,2]
[391119396,1760361734585,-100000.0,0.00012535,2]
[391119397,1760361734809,-20000.0,0.00012535,2]
[391119398,1760361735161,-20000.0,0.00012535,2]
[391119399,1760361735378,-156.53,0.00012535,2]
[391119400,1760361735499,-20000.0,0.00012535,2]
[391119401,1760361735563,-100000.0,0.00012535,2]
[391119402,1760361735830,-20000.0,0.00012535,2]
[391119403,1760361736182,-20000.0,0.00012535,2]
[391119404,1760361736531,-20000.0,0.00012535,2]
[391119405,1760361736561,-100000.0,0.00012535,2]
[391119406,1760361736880,-20000.0,0.00012535,2]
[391119407,1760361737267,-20000.0,0.00012535,2]
[391119408,1760361737546,-20000.0,0.00012535,2]
[391119409,1760361737900,-20000.0,0.00012535,2]
[391119410,1760361738235,-20000.0,0.00012535,2]
[391119411,1760361738275,-163.0,0.00012535,2]
[391119412,1760361739248,-100000.0,0.00012535,2]
[391119413,1760361740385,-100000.0,0.00012535,2]
[391119414,1760361740511,-234.50141716,0.00012535,2]
[391119415,1760361741329,8821.1933666,0.00012435,2]
[391119416,1760361741597,-10000.0,0.00012535,2]
[391119417,1760361743427,-10000.0,0.00012535,2]
[391119418,1760361743463,-10000.0,0.00012535,2]
[391119419,1760361743490,-10000.0,0.00012535,2]
[391119420,1760361743519,-462.94824091,0.00012535,2]
[391119421,1760361743549,-10000.0,0.00012535,2]
[391119422,1760361743581,-10000.0,0.00012535,2]
[391119423,1760361743632,-10000.0,0.00012535,2]
[391119424,1760361743933,-10000.0,0.00012535,2]
[391119426,1760361744379,-10000.0,0.00012535,2]